bitfinex/quotes_SOLUSD_20220116
["timestamp","ask_amount","ask_price","bid_price","bid_amount"]
[1642339126381,29.32664139,149.02,148.88,96.7108]
[1642339126579,29.32664139,149.02,148.88,90.7108]
[1642339127182,29.32664139,149.02,148.88,29.5508]
[1642339127380,31.02741727,149.02,148.88,29.5508]
[1642339127583,29.32664139,149.02,148.88,29.5508]
[1642339127980,53.52374139,149.02,148.88,29.5508]
[1642339128182,53.52374139,149.02,148.88,96.7108]
[1642339128382,53.52374139,149.02,148.88,90.7108]
[1642339129787,29.07664139,149.02,148.88,90.7108]
[1642339129989,29.07664139,149.02,148.89,0.26]
[1642339130786,29.07664139,149.02,148.88,90.7108]
[1642339130987,35.07664139,149.02,148.88,23.5508]
[1642339131187,35.32664139,149.02,148.88,23.5508]
[1642339132687,35.32664139,149.02,148.9,39.56164306]
[1642339132891,35.32664139,149.02,148.9,39.81164306]
[1642339139796,25.25714139,149.02,148.9,39.81164306]
[1642339139997,25.25714139,149.02,148.91,0.26]
[1642339140595,25.00714139,149.02,148.91,0.26]
[1642339141897,25.25714139,149.02,148.91,0.26]
[1642339142098,25.00714139,149.02,148.91,0.26]
[1642339142926,6.0,149.02,148.91,0.26]
[1642339143328,22.7741,149.06,148.91,0.26]
[1642339143528,22.7741,149.06,148.91,22.8228]
[1642339143927,18.3263672,149.05,148.91,29.0728]
[1642339145331,18.5763672,149.05,148.93,44.82449991]
[1642339145632,18.5763672,149.05,148.94,67.16]
[1642339145830,18.5763672,149.05,148.94,67.67]
[1642339146832,24.5763672,149.05,148.94,67.67]
[1642339147332,24.5763672,149.05,148.94,73.67]
[1642339147736,6.0,149.05,148.94,73.67]
[1642339147935,22.7741,149.06,148.94,73.67]
[1642339148434,22.7741,149.06,148.94,67.67]
[1642339148836,20.75915327,149.05,148.94,67.67]
[1642339149233,21.00915327,149.05,148.94,67.67]
[1642339149434,21.00915327,149.05,148.94,73.67]
[1642339149638,0.25,149.05,148.94,73.67]
[1642339149835,34.1247,149.09,148.94,97.5556]
[1642339150437,24.0599,149.09,148.94,97.5556]
[1642339150646,19.63586653,149.08,148.94,97.5556]
[1642339151834,19.88586653,149.08,148.94,97.5556]
[1642339152235,0.25,149.08,148.94,97.5556]
[1642339152435,1.70077588,149.08,148.94,97.0456]
[1642339152635,1.70077588,149.08,148.93,44.82449991]
[1642339152839,1.95077588,149.08,148.93,44.82449991]
[1642339153236,19.64915759,149.07,148.93,44.82449991]
[1642339153437,23.47,149.06,148.93,44.82449991]
[1642339153636,33.5368,149.06,148.93,44.82449991]
[1642339153837,23.47,149.06,148.94,67.42]
[1642339154337,23.47,149.06,148.94,67.67]
[1642339154839,3.47094202,149.1,148.94,73.67]
[1642339155040,3.47094202,149.1,148.95,24.286]
[1642339155242,3.47094202,149.1,148.96,67.16]
[1642339155442,3.47094202,149.11,148.96,67.67]
[1642339155746,23.29334782,149.1,148.97,42.82438116]
[1642339155941,29.29334782,149.1,148.98,67.42]
[1642339156342,29.29334782,149.1,148.98,67.67]
[1642339156742,29.29334782,149.1,148.98,67.42]
[1642339156941,52.06664782,149.1,148.98,67.42]
[1642339158142,52.06664782,149.1,148.97,42.82438116]
[1642339158342,52.06664782,149.1,148.97,43.07438116]
[1642339158542,62.13064782,149.1,148.97,43.07438116]
[1642339158948,62.13064782,149.1,148.97,110.23438116]
[1642339159344,62.13064782,149.1,148.97,42.82438116]
[1642339159544,1.70077588,149.09,148.97,42.82438116]
[1642339159743,10.0648,149.09,148.97,42.82438116]
[1642339159945,10.0648,149.09,148.97,43.07438116]
[1642339160144,10.0648,149.09,148.96,67.16]
[1642339160145,10.0648,149.09,148.95,24.286]
[1642339160346,25.24077588,149.08,148.89,28.4706745]
[1642339160546,25.24077588,149.08,148.9,23.5254]
[1642339160744,1.70077588,149.07,148.9,23.5254]
[1642339160944,1.70077588,149.07,148.9,29.5254]
[1642339161171,23.64958947,149.06,148.91,37.52548291]
[1642339161345,23.89958947,149.06,148.92,0.26]
[1642339161544,22.22692607,149.03,148.92,67.16]
[1642339161945,22.47692607,149.03,148.92,67.41]
[1642339162445,0.25,149.03,148.92,67.41]
[1642339162846,0.25,149.03,148.93,0.26]
[1642339163050,10.3183,149.04,148.93,0.26]
[1642339163548,20.9456625,149.03,148.93,0.26]
[1642339163947,21.1956625,149.03,148.93,0.26]
[1642339165249,21.1956625,149.03,148.92,0.26]
[1642339166248,0.25,149.03,148.92,0.26]
[1642339166449,10.3183,149.04,148.92,67.42]
[1642339167050,16.3183,149.04,148.92,67.42]
[1642339167250,20.39152523,149.03,148.92,67.42]
[1642339167461,20.64152523,149.03,148.92,67.42]
[1642339167652,20.64152523,149.03,148.92,67.16]
[1642339167852,20.64152523,149.03,148.91,37.77548291]
[1642339168555,45.15102523,149.03,148.91,104.93548291]
[1642339168981,46.80914502,149.03,148.92,0.26]
[1642339170383,47.05914502,149.03,148.92,0.26]
[1642339170784,45.15102523,149.03,148.92,0.26]
[1642339171981,51.15102523,149.03,148.92,0.26]
[1642339172483,51.15102523,149.03,148.92,67.42]
[1642339172683,51.15102523,149.03,148.92,0.26]
[1642339173288,51.15102523,149.03,148.92,67.42]
[1642339173685,51.15102523,149.03,148.91,39.67144871]
[1642339174087,53.05914502,149.03,148.91,37.77548291]
[1642339174786,32.66761979,149.03,148.92,67.16]
[1642339174988,32.66761979,149.03,148.92,67.42]
[1642339175188,32.66761979,149.03,148.92,67.67]
[1642339175390,32.41761979,149.03,148.92,67.67]
[1642339175597,32.41761979,149.03,148.92,67.41]
[1642339175792,6.0,149.03,148.92,76.245]
[1642339175991,6.0,149.03,148.93,0.26]
[1642339176289,1.90811979,149.04,148.93,0.26]
[1642339176790,1.90811979,149.04,148.92,92.1901]
[1642339176990,1.90811979,149.05,148.93,0.26]
[1642339177196,23.61239143,149.03,148.93,0.26]
[1642339177390,23.61239143,149.03,148.92,26.9260658]
[1642339177792,23.86239143,149.03,148.92,26.6760658]
[1642339177990,23.86239143,149.03,148.92,24.7801]
[1642339178192,25.56316731,149.03,148.92,24.7801]
[1642339179094,23.86239143,149.03,148.92,24.7801]
[1642339179291,1.90811979,149.02,148.92,24.7801]
[1642339179691,2.15811979,149.02,148.92,24.7801]
[1642339179895,25.94331979,149.02,148.92,24.7801]
[1642339181193,25.94331979,149.02,148.93,0.26]
[1642339181591,2.15811979,149.02,148.93,67.42]
[1642339181792,2.15811979,149.02,148.94,47.53456767]
[1642339182192,0.25,149.02,148.94,47.53456767]
[1642339182392,25.52051122,149.03,148.94,47.53456767]
[1642339182992,23.61239143,149.03,148.94,47.53456767]
[1642339183393,29.86239143,149.03,148.94,47.53456767]
[1642339183995,29.86239143,149.03,148.94,47.78456767]
[1642339184394,29.86239143,149.03,148.95,0.26]
[1642339185102,29.86239143,149.03,148.94,47.78456767]
[1642339185993,6.25,149.03,148.94,47.78456767]
[1642339186596,0.25,149.03,148.94,47.78456767]
[1642339186796,8.15811979,149.04,148.94,47.78456767]
[1642339186997,19.439685,149.03,148.94,47.78456767]
[1642339187397,19.689685,149.03,148.94,47.78456767]
[1642339187798,19.689685,149.03,148.94,47.53456767]
[1642339188999,1.90811979,149.02,148.94,47.53456767]
[1642339189399,2.15811979,149.02,148.94,47.53456767]
[1642339189900,1.90811979,149.02,148.94,47.53456767]
[1642339190100,1.90811979,149.02,148.94,47.78456767]
[1642339190903,7.90811979,149.02,148.94,47.78456767]
[1642339191100,1.90811979,149.02,148.94,114.94456767]
[1642339191307,6.25,149.02,148.94,114.94456767]
[1642339191502,1.90811979,149.04,148.94,114.94456767]
[1642339191702,7.90811979,149.04,148.94,114.94456767]
[1642339191905,1.90811979,149.04,148.94,47.78456767]
[1642339192102,7.90811979,149.04,148.94,47.78456767]
[1642339192304,22.01908714,149.03,148.94,47.78456767]
[1642339192902,22.26908714,149.03,148.94,47.78456767]
[1642339193101,0.25,149.03,148.94,47.78456767]
[1642339193303,0.25,149.03,148.95,0.26]
[1642339193502,2.15811979,149.04,148.95,0.26]
[1642339193908,2.15811979,149.04,148.95,67.42]
[1642339194104,1.90811979,149.04,148.95,67.42]
[1642339194402,1.90811979,149.04,148.95,73.67]
[1642339194605,1.90811979,149.04,148.95,79.991]
[1642339195006,24.94641979,149.05,148.95,79.991]
[1642339196005,23.0383,149.05,148.95,73.67]
[1642339196204,29.0383,149.05,148.95,73.67]
[1642339196408,23.0383,149.05,148.95,73.67]
[1642339197005,23.2883,149.05,148.95,73.67]
[1642339197705,4.0971542,149.04,148.95,73.67]
[1642339197909,4.3471542,149.04,148.95,73.67]
[1642339198107,4.3471542,149.04,148.95,67.67]
[1642339198306,4.3471542,149.04,148.95,67.16]
[1642339198508,10.3471542,149.04,148.94,49.43053347]
[1642339198707,6.04793008,149.04,148.94,47.53456767]
[1642339199307,12.04793008,149.04,148.94,47.53456767]
[1642339199506,7.95604987,149.04,148.94,47.53456767]
[1642339199710,13.95604987,149.04,148.94,47.53456767]
[1642339200611,1.90811979,149.03,148.94,47.53456767]
[1642339201009,2.15811979,149.03,148.94,47.53456767]
[1642339202111,2.15811979,149.03,148.95,67.42]
[1642339202311,1.90811979,149.03,148.95,67.67]
[1642339202943,24.94641979,149.05,148.95,67.67]
[1642339203740,23.0383,149.05,148.95,0.25]
[1642339203940,29.0383,149.05,148.94,47.78456767]
[1642339204144,29.0383,149.05,148.94,139.29156767]
[1642339204341,29.2883,149.05,148.95,0.26]
[1642339204543,29.2883,149.05,148.94,139.29156767]
[1642339204740,29.2883,149.05,148.95,0.26]
[1642339204939,29.2883,149.05,148.94,139.29156767]
[1642339205141,29.2883,149.05,148.95,0.26]
[1642339205341,31.19641979,149.05,148.95,0.26]
[1642339206342,31.19641979,149.05,148.94,139.54156767]
[1642339208651,30.94641979,149.05,148.94,139.54156767]
[1642339208848,7.90811979,149.05,148.95,0.26]
[1642339209252,6.0,149.05,148.95,0.26]
[1642339209448,1.90811979,149.06,148.95,0.26]
[1642339210451,2.15811979,149.06,148.95,0.26]
[1642339210655,0.25,149.06,148.95,2.1559658]
[1642339210855,21.79342411,149.07,148.95,8.4059658]
[1642339211052,21.79342411,149.07,148.96,67.16]
[1642339211253,21.79342411,149.07,148.97,38.41260752]
[1642339211452,21.79342411,149.07,148.95,2.1459658]
[1642339211653,23.49419999,149.07,148.95,67.41]
[1642339211955,24.4241,149.06,148.94,26.4929658]
[1642339212355,24.6741,149.06,148.94,26.4929658]
[1642339212554,24.6741,149.06,148.95,39.848813]
[1642339212752,1.90811979,149.04,148.95,39.848813]
[1642339212955,2.49881318,149.03,148.95,107.008813]
[1642339213152,2.49881318,149.03,148.95,107.258813]
[1642339213354,2.74881318,149.03,148.96,0.26]
[1642339213755,2.74881318,149.03,148.94,24.597]
[1642339214856,4.65693297,149.03,148.95,42.32764329]
[1642339216154,1.90811979,149.03,148.96,0.26]
[1642339216755,7.90811979,149.03,148.96,67.42]
[1642339216957,6.0,149.03,148.96,67.41]
[1642339217154,24.02697708,149.02,148.96,0.25]
[1642339217357,30.02697708,149.02,148.96,0.25]
[1642339217856,30.27697708,149.02,148.96,0.25]
[1642339218156,30.27697708,149.02,148.95,109.73764329]
[1642339218353,6.25,149.02,148.95,109.73764329]
[1642339218556,6.25,149.02,148.96,0.26]
[1642339219056,0.25,149.02,148.96,0.26]
[1642339219255,6.25,149.02,148.96,0.26]
[1642339219454,21.79803262,149.05,148.96,0.26]
[1642339219656,27.79803262,149.05,148.96,0.26]
[1642339220358,27.79803262,149.05,148.95,109.73764329]
[1642339220557,27.79803262,149.05,148.95,109.48764329]
[1642339220758,27.79803262,149.05,148.96,0.26]
[1642339221188,1.90811979,149.04,148.96,0.26]
[1642339221359,2.15811979,149.04,148.96,0.26]
[1642339222162,24.70251979,149.04,148.96,0.26]
[1642339222662,2.15811979,149.04,148.96,0.26]
[1642339222963,26.84291979,149.04,148.96,0.26]
[1642339225263,32.84291979,149.04,148.96,0.26]
[1642339226065,8.15811979,149.04,148.96,0.26]
[1642339226765,8.15811979,149.04,148.95,42.57764329]
[1642339226965,8.15811979,149.04,148.95,0.25]
[1642339227169,32.66461979,149.04,148.95,0.25]
[1642339227368,32.66461979,149.04,148.94,92.007]
[1642339227869,32.66461979,149.04,148.94,138.66328263]
[1642339228073,1.90811979,149.03,148.94,138.66328263]
[1642339228267,1.90811979,149.03,148.95,0.26]
[1642339228468,2.15811979,149.03,148.94,138.66328263]
[1642339228871,0.25,149.03,148.94,138.66328263]
[1642339229068,6.25,149.03,148.94,138.66328263]
[1642339229270,0.25,149.03,148.94,138.66328263]
[1642339229469,6.0,149.03,148.94,92.007]
[1642339229671,1.95077588,149.03,148.92,1.8959658]
[1642339230071,7.95077588,149.03,148.92,1.8959658]
[1642339230270,6.25,149.03,148.92,1.8959658]
[1642339230468,23.7787,149.02,148.92,42.79295712]
[1642339230670,23.7787,149.02,148.9,1.8959658]
[1642339230969,3.60889567,149.01,148.9,1.8959658]
[1642339231469,1.70077588,149.0,148.9,1.8959658]
[1642339231668,4.40232446,148.99,148.88,1.8959658]
[1642339231872,6.31044425,148.99,148.88,1.8959658]
[1642339232270,8.01122013,148.99,148.88,1.8959658]
[1642339232570,24.6018,148.98,148.88,1.8959658]
[1642339232772,24.6018,148.98,148.88,45.1198667]
[1642339232968,1.70077588,148.97,148.88,45.1198667]
[1642339233169,24.6018,148.98,148.88,45.1198667]
[1642339233569,26.30257588,148.98,148.88,45.1198667]
[1642339233770,36.37477588,148.98,148.85,69.0559658]
[1642339233971,36.37477588,148.98,148.86,0.25]
[1642339234873,38.28289567,148.98,148.86,49.65134318]
[1642339235274,38.28289567,148.98,148.86,49.90134318]
[1642339235674,38.53289567,148.98,148.86,49.90134318]
[1642339235875,44.53289567,148.98,148.86,49.90134318]
[1642339236077,42.62477588,148.98,148.86,49.90134318]
[1642339239278,42.62477588,148.98,148.86,49.65134318]
[1642339246917,42.62477588,148.98,148.84,46.7667]
[1642339247117,42.62477588,148.98,148.84,47.0167]
[1642339248519,42.62477588,148.98,148.84,46.7667]
[1642339248722,42.62477588,148.98,148.84,47.0167]
[1642339249921,56.59300362,148.98,148.84,47.0167]
[1642339251128,56.59300362,148.98,148.84,114.1767]
[1642339251331,123.75300362,148.98,148.84,67.16]
[1642339251527,123.75300362,148.98,148.82,1.8959658]
[1642339251528,56.59300362,148.98,148.82,1.8959658]
[1642339251728,24.1399,148.97,148.82,69.3059658]
[1642339251929,24.3899,148.97,148.82,69.3059658]
[1642339252128,10.0751,148.94,148.82,69.3059658]
[1642339252330,44.45601283,148.93,148.83,39.24135612]
[1642339252630,46.15678871,148.93,148.83,39.24135612]
[1642339252830,44.70601283,148.93,148.83,39.49135612]
[1642339253432,46.40678871,148.93,148.83,39.49135612]
[1642339253829,56.48248871,148.93,148.81,1.8959658]
[1642339254831,56.48248871,148.93,148.81,49.3866951]
[1642339255631,62.48248871,148.93,148.81,49.3866951]
[1642339256934,62.48248871,148.93,148.8,1.8959658]
[1642339257434,62.48248871,148.93,148.79,1.8959658]
[1642339258032,67.16,148.92,148.79,1.8959658]
[1642339258232,69.77048871,148.93,148.79,1.8959658]
[1642339258433,1.70077588,148.91,148.79,1.8959658]
[1642339258832,10.0798,148.88,148.79,1.8959658]
[1642339259034,4.40232446,148.87,148.79,1.8959658]
[1642339259534,4.65232446,148.87,148.77,1.8959658]
[1642339259734,24.7141,148.86,148.77,1.8959658]
[1642339259933,24.7141,148.86,148.77,0.20582027]
[1642339259934,118.0,148.85,148.77,0.20582027]
[1642339260136,128.60377588,148.85,148.74,3.8083745]
[1642339260436,1.70077588,148.84,148.74,3.8083745]
[1642339260636,9.05693729,148.84,148.74,3.8083745]
[1642339260835,1.48075654,148.8,148.64,9.60770325]
[1642339261035,10.0879,148.77,148.64,9.60770325]
[1642339261337,4.40232446,148.76,148.7,3.82130311]
[1642339261538,6.10310034,148.76,148.7,3.82130311]
[1642339261839,4.65232446,148.76,148.7,3.82130311]
[1642339262468,10.0882,148.75,148.7,3.82130311]
[1642339262836,10.3382,148.75,148.67,5.69497608]
[1642339263036,10.3382,148.75,148.62,3.82386161]
[1642339263238,23.6528,148.79,148.63,92.0475]
[1642339263437,23.6528,148.79,148.63,98.2975]
[1642339263840,23.6528,148.79,148.64,0.26]
[1642339264139,43.93782353,148.78,148.64,50.36424588]
[1642339264339,43.93782353,148.78,148.64,56.61424588]
[1642339264838,24.0692,148.78,148.65,24.7055]
[1642339265239,23.8192,148.78,148.66,0.26]
[1642339266240,23.6528,148.79,148.66,67.42]
[1642339266445,43.6292,148.87,148.68,67.16]
[1642339266641,22.7033,148.86,148.7,67.16]
[1642339266841,22.7033,148.86,148.71,0.26]
[1642339267141,23.1102,148.88,148.71,54.31490055]
[1642339267441,23.1102,148.88,148.72,67.16]
[1642339267842,39.1891,148.88,148.73,24.7369]
[1642339268041,39.1891,148.88,148.73,91.8969]
[1642339268243,16.76566255,148.87,148.74,47.62172759]
[1642339268441,40.93956255,148.87,148.74,47.88172759]
[1642339269443,10.0804,148.86,148.74,48.13172759]
[1642339270043,10.3304,148.86,148.74,48.13172759]
[1642339270243,10.3304,148.86,148.74,47.88172759]
[1642339270647,10.3304,148.86,148.74,47.62172759]
[1642339271447,10.0804,148.86,148.74,47.87172759]
[1642339271650,40.93956255,148.87,148.74,47.87172759]
[1642339271847,40.93956255,148.87,148.75,0.26]
[1642339272047,40.93956255,148.87,148.75,67.42]
[1642339272347,40.93956255,148.87,148.74,47.62172759]
[1642339272547,42.64033843,148.87,148.74,47.62172759]
[1642339272746,42.89033843,148.87,148.74,47.62172759]
[1642339273545,52.97003843,148.87,148.74,47.62172759]
[1642339273745,58.97003843,148.87,148.74,47.62172759]
[1642339278449,132.90842206,148.87,148.74,47.62172759]
[1642339278652,65.74842206,148.87,148.74,47.62172759]
[1642339280652,65.74842206,148.87,148.73,24.4769]
[1642339281052,65.74842206,148.87,148.69,23.4145]
[1642339281353,67.16,148.86,148.7,25.1098]
[1642339281552,67.16,148.86,148.7,24.8498]
[1642339281756,5.21254792,148.81,148.71,37.92061496]
[1642339281953,5.46254792,148.81,148.71,37.92061496]
[1642339282153,7.1633238,148.81,148.71,37.92061496]
[1642339283953,13.1633238,148.81,148.71,37.92061496]
[1642339285283,7.95077588,148.81,148.71,37.92061496]
[1642339286284,19.16799452,148.8,148.72,67.16]
[1642339286685,19.41799452,148.8,148.71,37.92061496]
[1642339286884,19.16799452,148.8,148.71,38.17061496]
[1642339287088,19.16799452,148.8,148.71,37.92061496]
[1642339287588,20.8687704,148.8,148.7,24.8498]
[1642339287786,20.8687704,148.8,148.63,23.4309]
[1642339287985,20.8687704,148.8,148.64,23.6464]
[1642339288186,21.1187704,148.8,148.64,23.9064]
[1642339288387,21.1187704,148.8,148.64,30.1564]
[1642339288588,10.0856,148.78,148.65,43.13905228]
[1642339288786,2.81021595,148.77,148.65,110.29905228]
[1642339288988,23.7521,148.76,148.65,110.54905228]
[1642339289488,0.25,148.76,148.65,110.54905228]
[1642339289791,0.25,148.76,148.66,0.26]
[1642339290386,9.06021595,148.77,148.66,0.26]
[1642339290587,3.06021595,148.77,148.66,0.26]
[1642339290788,9.06021595,148.77,148.66,0.26]
[1642339290987,3.06021595,148.77,148.65,110.29905228]
[1642339291186,9.06021595,148.77,148.65,110.29905228]
[1642339291587,6.25,148.77,148.66,0.26]
[1642339292087,0.25,148.77,148.66,0.26]
[1642339292286,0.25,148.77,148.66,24.7984]
[1642339292505,18.21588311,148.79,148.66,24.7984]
[1642339292692,18.46588311,148.79,148.66,24.5384]
[1642339292892,1.70077588,148.78,148.66,24.5384]
[1642339293092,1.70077588,148.78,148.65,110.29905228]
[1642339293391,26.06447588,148.78,148.65,110.29905228]
[1642339293792,3.76232736,148.76,148.65,110.29905228]
[1642339294293,10.01232736,148.76,148.65,110.29905228]
[1642339294493,10.01232736,148.76,148.65,110.54905228]
[1642339294693,4.01232736,148.76,148.65,110.54905228]
[1642339295095,10.01232736,148.76,148.65,110.54905228]
[1642339296393,10.01232736,148.76,148.65,110.29905228]
[1642339296595,10.01232736,148.76,148.65,43.13905228]
[1642339296793,11.71310324,148.76,148.65,43.13905228]
[1642339296993,23.8797,148.75,148.65,43.13905228]
[1642339297394,24.1297,148.75,148.65,43.13905228]
[1642339298194,0.25,148.75,148.65,43.13905228]
[1642339298395,1.70077588,148.79,148.67,67.16]
[1642339298595,23.2318,148.8,148.68,24.5072]
[1642339298794,33.316,148.8,148.68,24.5072]
[1642339298994,1.70077588,148.79,148.68,24.5072]
[1642339299195,21.45050647,148.78,148.68,24.5072]
[1642339299393,21.45050647,148.78,148.63,67.16]
[1642339299595,24.77927588,148.77,148.63,67.16]
[1642339299994,1.70077588,148.76,148.63,67.16]
[1642339300197,0.527704,148.75,148.64,48.86065149]
[1642339300798,0.527704,148.75,148.65,23.1]
[1642339301399,23.904504,148.75,148.65,23.1]
[1642339301799,24.154504,148.75,148.65,23.1]
[1642339303800,23.6268,148.75,148.65,23.1]
[1642339304404,23.6268,148.75,148.65,23.35]
[1642339304604,23.6268,148.75,148.65,23.1]
[1642339304803,41.66844768,148.75,148.65,23.1]
[1642339305006,47.66844768,148.75,148.65,23.1]
[1642339305204,29.6268,148.75,148.65,23.1]
[1642339305406,29.6268,148.75,148.65,90.51]
[1642339305604,6.25,148.75,148.65,90.51]
[1642339305804,6.25,148.75,148.66,0.26]
[1642339306004,0.25,148.75,148.66,0.26]
[1642339306204,6.25,148.75,148.66,0.26]
[1642339306403,0.25,148.75,148.66,0.26]
[1642339307606,26.73380922,148.78,148.66,0.26]
[1642339308210,26.48380922,148.78,148.66,0.26]
[1642339309409,28.1845851,148.78,148.68,67.16]
[1642339309609,26.73380922,148.78,148.69,45.66539897]
[1642339309809,26.73380922,148.78,148.69,45.92539897]
[1642339310010,26.73380922,148.78,148.69,45.66539897]
[1642339310410,6.25,148.78,148.69,45.66539897]
[1642339310613,0.25,148.78,148.69,45.66539897]
[1642339310809,34.3791,148.8,148.69,45.91539897]
[1642339311013,34.3791,148.8,148.7,67.16]
[1642339311237,24.2948,148.8,148.7,67.16]
[1642339311438,44.96790357,148.8,148.69,45.91539897]
[1642339311638,1.70077588,148.79,148.69,45.66539897]
[1642339311837,69.11077588,148.79,148.63,67.16]
[1642339312038,29.46078363,148.78,148.63,73.16]
[1642339312338,31.41155951,148.78,148.64,23.753]
[1642339312537,1.70077588,148.77,148.64,23.753]
[1642339312938,1.70077588,148.77,148.65,43.82163421]
[1642339312939,1.3051069,148.76,148.65,43.82163421]
[1642339313338,3.25588278,148.76,148.65,43.82163421]
[1642339313941,25.86868278,148.76,148.65,43.82163421]
[1642339314343,31.86868278,148.76,148.65,43.82163421]
[1642339316442,30.56357588,148.76,148.65,43.82163421]
[1642339316645,30.56357588,148.76,148.66,0.26]
[1642339316847,30.31357588,148.76,148.66,0.26]
[1642339317045,28.6128,148.76,148.66,0.26]
[1642339317745,6.0,148.76,148.66,0.26]
[1642339317944,8.47915951,148.78,148.66,0.26]
[1642339318146,0.25,148.76,148.66,0.26]
[1642339318346,24.569,148.77,148.66,0.26]
[1642339319044,21.53502522,148.76,148.66,0.26]
[1642339319246,21.78502522,148.76,148.66,0.26]
[1642339319948,0.25,148.76,148.66,0.26]
[1642339320348,24.569,148.77,148.66,0.26]
[1642339320548,24.319,148.77,148.66,0.26]
[1642339320946,42.6436371,148.77,148.66,0.26]
[1642339321548,48.6436371,148.77,148.66,0.26]
[1642339321947,48.8936371,148.77,148.66,0.26]
[1642339324649,48.8936371,148.77,148.66,23.0627]
[1642339324849,48.8936371,148.77,148.66,23.3127]
[1642339325450,6.25,148.77,148.66,23.3127]
[1642339325652,6.25,148.77,148.67,67.16]
[1642339325852,0.25,148.77,148.68,0.26]
[1642339326049,0.25,148.77,148.68,23.1432]
[1642339326250,24.4003,148.8,148.68,23.1432]
[1642339326451,21.04764377,148.79,148.69,45.00319347]
[1642339326651,21.04764377,148.79,148.7,67.16]
[1642339326851,21.29764377,148.79,148.7,67.16]
[1642339327053,21.29764377,148.79,148.69,45.00319347]
[1642339328457,22.99841965,148.79,148.69,45.00319347]
[1642339329356,28.99841965,148.79,148.69,45.00319347]
[1642339330557,28.99841965,148.79,148.69,112.16319347]
[1642339331061,28.99841965,148.79,148.69,112.41319347]
[1642339331862,28.99841965,148.79,148.69,45.00319347]
[1642339332261,35.77680328,148.79,148.69,45.00319347]
[1642339333161,35.77680328,148.79,148.68,90.1149]
[1642339333759,23.7847,148.78,148.68,90.1149]
[1642339333960,24.0347,148.78,148.68,90.1149]
[1642339334163,1.70077588,148.77,148.68,90.1149]
[1642339334461,0.9305667,148.76,148.68,90.1149]
[1642339334960,1.70077588,148.75,148.68,90.1149]
[1642339335361,1.95077588,148.75,148.68,90.1149]
[1642339335761,1.70077588,148.74,148.69,0.26]
[1642339335961,1.95077588,148.74,148.68,90.1149]
[1642339338464,1.95077588,148.74,148.69,0.26]
[1642339338865,7.95077588,148.74,148.69,0.26]
[1642339339068,1.95077588,148.74,148.69,0.26]
[1642339339268,7.95077588,148.74,148.69,0.26]
[1642339339466,1.95077588,148.74,148.69,0.26]
[1642339339667,7.95077588,148.74,148.69,0.26]
[1642339339866,6.25,148.74,148.68,90.3649]
[1642339340066,0.25,148.74,148.68,90.3649]
[1642339340467,117.02044224,148.77,148.68,90.3649]
[1642339341067,100.65,148.77,148.68,90.3649]
[1642339341371,100.65,148.77,148.69,0.26]
[1642339341967,100.65,148.77,148.68,90.3649]
[1642339342167,121.72343407,148.77,148.68,90.3649]
[1642339342368,121.72343407,148.77,148.69,0.26]
[1642339342869,123.42420995,148.77,148.69,0.26]
[1642339343069,123.42420995,148.77,148.68,90.3649]
[1642339343871,102.35077588,148.77,148.69,0.26]
[1642339346002,6.0,148.77,148.69,0.26]
[1642339346405,48.2064,148.81,148.69,0.26]
[1642339346805,49.90717588,148.81,148.69,0.26]
[1642339347002,20.89040258,148.8,148.69,0.26]
[1642339347203,22.7859,148.79,148.69,0.26]
[1642339347403,23.0359,148.79,148.69,0.26]
[1642339348004,29.0359,148.79,148.69,0.26]
[1642339348502,6.25,148.79,148.69,0.26]
[1642339348701,6.77838363,148.81,148.69,0.26]
[1642339348906,94.4,148.83,148.69,0.26]
[1642339349201,6.0,148.81,148.69,0.26]
[1642339349601,16.81716376,148.8,148.71,104.1267308]
[1642339350001,0.25,148.8,148.72,0.26]
[1642339350201,0.25,148.8,148.73,67.16]